Workbook

Sheet RoleLevelConfig
A1: ID[csknu] | B1: goods[csna] | C1: goodNum[csna]
A2: 卡牌等级 | B2: 道具ID数组 | C2: 道具数量数组
A3: 1 | B3: 0 | C3: 0
A4: 2 | B4: 140004^100001 | C4: 200^560
A5: 3 | B5: 140004^100001 | C5: 400^1120
A6: 4 | B6: 140004^100001 | C6: 600^1680
A7: 5 | B7: 140004^100001 | C7: 800^2240
A8: 6 | B8: 140004^100001 | C8: 1000^2800
A9: 7 | B9: 140004^100001 | C9: 1200^3360
A10: 8 | B10: 140004^100001 | C10: 1400^3920
A11: 9 | B11: 140004^100001 | C11: 1600^4480
A12: 10 | B12: 140004^100001 | C12: 1800^5040
A13: 11 | B13: 140004^100001 | C13: 2000^5600
A14: 12 | B14: 140004^100001 | C14: 2500^7000
A15: 13 | B15: 140004^100001 | C15: 2750^7700
A16: 14 | B16: 140004^100001 | C16: 3000^8400
A17: 15 | B17: 140004^100001 | C17: 3250^9100
A18: 16 | B18: 140004^100001 | C18: 3500^9800
A19: 17 | B19: 140004^100001 | C19: 3750^10500
A20: 18 | B20: 140004^100001 | C20: 4000^11200
A21: 19 | B21: 140004^100001 | C21: 4250^11900
A22: 20 | B22: 140004^100001 | C22: 4500^12600
A23: 21 | B23: 140004^100001 | C23: 4750^13300
A24: 22 | B24: 140004^100001 | C24: 5500^15400
A25: 23 | B25: 140004^100001 | C25: 5800^16240
A26: 24 | B26: 140004^100001 | C26: 6100^17080
A27: 25 | B27: 140004^100001 | C27: 6400^17920
A28: 26 | B28: 140004^100001 | C28: 6700^18760
A29: 27 | B29: 140004^100001 | C29: 7000^19600
A30: 28 | B30: 140004^100001 | C30: 7300^20440
A31: 29 | B31: 140004^100001 | C31: 7600^21280
A32: 30 | B32: 140004^100001 | C32: 7900^22120
A33: 31 | B33: 140004^100001 | C33: 9000^25200
A34: 32 | B34: 140004^100001 | C34: 9400^26320
A35: 33 | B35: 140004^100001 | C35: 9800^27440
A36: 34 | B36: 140004^100001 | C36: 10200^28560
A37: 35 | B37: 140004^100001 | C37: 10600^29680
A38: 36 | B38: 140004^100001 | C38: 11000^30800
A39: 37 | B39: 140004^100001 | C39: 11400^31920
A40: 38 | B40: 140004^100001 | C40: 11800^33040
A41: 39 | B41: 140004^100001 | C41: 12200^34160
A42: 40 | B42: 140004^100001 | C42: 12600^35280
A43: 41 | B43: 140004^100001 | C43: 13000^36400
A44: 42 | B44: 140004^100001 | C44: 13400^37520
A45: 43 | B45: 140004^100001 | C45: 13800^38640
A46: 44 | B46: 140004^100001 | C46: 14200^39760
A47: 45 | B47: 140004^100001 | C47: 14600^40880
A48: 46 | B48: 140004^100001 | C48: 15000^42000
A49: 47 | B49: 140004^100001 | C49: 22000^61600
A50: 48 | B50: 140004^100001 | C50: 24000^67200
A51: 49 | B51: 140004^100001 | C51: 26000^72800
A52: 50 | B52: 140004^100001 | C52: 28000^78400
A53: 51 | B53: 140004^100001 | C53: 30000^84000
A54: 52 | B54: 140004^100001 | C54: 32000^89600
A55: 53 | B55: 140004^100001 | C55: 34000^95200
A56: 54 | B56: 140004^100001 | C56: 36000^100800
A57: 55 | B57: 140004^100001 | C57: 38000^106400
A58: 56 | B58: 140004^100001 | C58: 40000^112000
A59: 57 | B59: 140004^100001 | C59: 42000^117600
A60: 58 | B60: 140004^100001 | C60: 44000^123200
A61: 59 | B61: 140004^100001 | C61: 46000^128800
A62: 60 | B62: 140004^100001 | C62: 48000^134400
A63: 61 | B63: 140004^100001 | C63: 50000^140000
A64: 62 | B64: 140004^100001 | C64: 55000^154000
A65: 63 | B65: 140004^100001 | C65: 57000^159600
A66: 64 | B66: 140004^100001 | C66: 59000^165200
A67: 65 | B67: 140004^100001 | C67: 61000^170800
A68: 66 | B68: 140004^100001 | C68: 63000^176400
A69: 67 | B69: 140004^100001 | C69: 65000^182000
A70: 68 | B70: 140004^100001 | C70: 67000^187600
A71: 69 | B71: 140004^100001 | C71: 69000^193200
A72: 70 | B72: 140004^100001 | C72: 71000^198800
A73: 71 | B73: 140004^100001 | C73: 73000^204400
A74: 72 | B74: 140004^100001 | C74: 75000^210000
A75: 73 | B75: 140004^100001 | C75: 77000^215600
A76: 74 | B76: 140004^100001 | C76: 79000^221200
A77: 75 | B77: 140004^100001 | C77: 81000^226800
A78: 76 | B78: 140004^100001 | C78: 83000^232400
A79: 77 | B79: 140004^100001 | C79: 100000^280000
A80: 78 | B80: 140004^100001 | C80: 103000^288400
A81: 79 | B81: 140004^100001 | C81: 106000^296800
A82: 80 | B82: 140004^100001 | C82: 109000^305200
A83: 81 | B83: 140004^100001 | C83: 112000^313600
A84: 82 | B84: 140004^100001 | C84: 115000^322000
A85: 83 | B85: 140004^100001 | C85: 118000^330400
A86: 84 | B86: 140004^100001 | C86: 121000^338800
A87: 85 | B87: 140004^100001 | C87: 124000^347200
A88: 86 | B88: 140004^100001 | C88: 127000^355600
A89: 87 | B89: 140004^100001 | C89: 130000^364000
A90: 88 | B90: 140004^100001 | C90: 133000^372400
A91: 89 | B91: 140004^100001 | C91: 136000^380800
A92: 90 | B92: 140004^100001 | C92: 139000^389200
A93: 91 | B93: 140004^100001 | C93: 142000^397600
A94: 92 | B94: 140004^100001 | C94: 200000^560000
A95: 93 | B95: 140004^100001 | C95: 203000^568400
A96: 94 | B96: 140004^100001 | C96: 206000^576800
A97: 95 | B97: 140004^100001 | C97: 209000^585200
A98: 96 | B98: 140004^100001 | C98: 212000^593600
A99: 97 | B99: 140004^100001 | C99: 215000^602000
A100: 98 | B100: 140004^100001 | C100: 218000^610400
A101: 99 | B101: 140004^100001 | C101: 221000^618800
A102: 100 | B102: 140004^100001 | C102: 224000^627200
A103: 101 | B103: 140004^100001 | C103: 227000^635600
A104: 102 | B104: 140004^100001 | C104: 230000^644000
A105: 103 | B105: 140004^100001 | C105: 233000^652400
A106: 104 | B106: 140004^100001 | C106: 236000^660800
A107: 105 | B107: 140004^100001 | C107: 239000^669200
A108: 106 | B108: 140004^100001 | C108: 242000^677600
A109: 107 | B109: 140004^100001 | C109: 245000^686000
A110: 108 | B110: 140004^100001 | C110: 248000^694400
A111: 109 | B111: 140004^100001 | C111: 251000^702800
A112: 110 | B112: 140004^100001 | C112: 254000^711200
A113: 111 | B113: 140004^100001 | C113: 257000^719600
A114: 112 | B114: 140004^100001 | C114: 260000^728000
A115: 113 | B115: 140004^100001 | C115: 263000^736400
A116: 114 | B116: 140004^100001 | C116: 266000^744800
A117: 115 | B117: 140004^100001 | C117: 269000^753200
A118: 116 | B118: 140004^100001 | C118: 272000^761600
A119: 117 | B119: 140004^100001 | C119: 275000^770000
A120: 118 | B120: 140004^100001 | C120: 278000^778400
A121: 119 | B121: 140004^100001 | C121: 281000^786800
A122: 120 | B122: 140004^100001 | C122: 284000^795200
A123: 121 | B123: 140004^100001 | C123: 287000^803600
A124: 122 | B124: 140004^100001 | C124: 302000^845600
A125: 123 | B125: 140004^100001 | C125: 307000^859600
A126: 124 | B126: 140004^100001 | C126: 315000^882000
A127: 125 | B127: 140004^100001 | C127: 321000^898800
A128: 126 | B128: 140004^100001 | C128: 327500^917000
A129: 127 | B129: 140004^100001 | C129: 334000^935200
A130: 128 | B130: 140004^100001 | C130: 340500^953400
A131: 129 | B131: 140004^100001 | C131: 347000^971600
A132: 130 | B132: 140004^100001 | C132: 353500^989800
A133: 131 | B133: 140004^100001 | C133: 360000^1008000
A134: 132 | B134: 140004^100001 | C134: 366500^1026200
A135: 133 | B135: 140004^100001 | C135: 373000^1044400
A136: 134 | B136: 140004^100001 | C136: 379500^1062600
A137: 135 | B137: 140004^100001 | C137: 386000^1080800
A138: 136 | B138: 140004^100001 | C138: 392500^1099000
A139: 137 | B139: 140004^100001 | C139: 399000^1117200
A140: 138 | B140: 140004^100001 | C140: 405500^1135400
A141: 139 | B141: 140004^100001 | C141: 412000^1153600
A142: 140 | B142: 140004^100001 | C142: 418500^1171800
A143: 141 | B143: 140004^100001 | C143: 425000^1190000
A144: 142 | B144: 140004^100001 | C144: 431500^1208200
A145: 143 | B145: 140004^100001 | C145: 438000^1226400
A146: 144 | B146: 140004^100001 | C146: 444500^1244600
A147: 145 | B147: 140004^100001 | C147: 451000^1262800
A148: 146 | B148: 140004^100001 | C148: 457500^1281000
A149: 147 | B149: 140004^100001 | C149: 464000^1299200
A150: 148 | B150: 140004^100001 | C150: 470500^1317400
A151: 149 | B151: 140004^100001 | C151: 477000^1335600
A152: 150 | B152: 140004^100001 | C152: 483500^1353800
A153: 151 | B153: 140004^100001 | C153: 490000^1372000
A154: 152 | B154: 140004^100001 | C154: 496500^1390200
A155: 153 | B155: 140004^100001 | C155: 503000^1408400
A156: 154 | B156: 140004^100001 | C156: 509500^1426600
A157: 155 | B157: 140004^100001 | C157: 516000^1444800
A158: 156 | B158: 140004^100001 | C158: 522500^1463000
A159: 157 | B159: 140004^100001 | C159: 529000^1481200
A160: 158 | B160: 140004^100001 | C160: 535500^1499400
A161: 159 | B161: 140004^100001 | C161: 542000^1517600
A162: 160 | B162: 140004^100001 | C162: 548500^1535800
A163: 161 | B163: 140004^100001 | C163: 555000^1554000
A164: 162 | B164: 140004^100001 | C164: 561500^1572200
A165: 163 | B165: 140004^100001 | C165: 568000^1590400
A166: 164 | B166: 140004^100001 | C166: 574500^1608600
A167: 165 | B167: 140004^100001 | C167: 581000^1626800
A168: 166 | B168: 140004^100001 | C168: 587500^1645000
A169: 167 | B169: 140004^100001 | C169: 594000^1663200
A170: 168 | B170: 140004^100001 | C170: 600500^1681400
A171: 169 | B171: 140004^100001 | C171: 607000^1699600
A172: 170 | B172: 140004^100001 | C172: 613500^1717800

Sheet Sheet2
A1: 队伍等级 | B1: 磨坊等级 | C1: 每日体力 | D1: 每天关卡对应产出 | E1: 金币 | F1: 升一级需要消耗经验 | G1: 金币 | H1: 升一级消耗副本次数
A2: 1 | B2: 1 | C2: 144 | D2: 100 | E2: 200 | F2: 200 | G2: =F2*2.8 -> 560 | H2: =F2/D2 -> 2 | I2: =H2/C2*10 -> 0.1388888889 | J2: =_xlfn.TEXTJOIN("^",TRUE,F2:G2) -> 200^560
A3: 2 | B3: 1 | C3: 144 | D3: 100 | E3: 200 | F3: 400 | G3: =F3*2.8 -> 1120 | H3: =F3/D3 -> 4 | I3: =H3/C3*10 -> 0.2777777778 | J3: =_xlfn.TEXTJOIN("^",TRUE,F3:G3) -> 400^1120
A4: 3 | B4: 1 | C4: 144 | D4: 100 | E4: 200 | F4: 600 | G4: 1680 | H4: 6 | I4: 0.4166666667 | J4: 600^1680
A5: 4 | B5: 1 | C5: 144 | D5: 120 | E5: 200 | F5: 800 | G5: 2240 | H5: 6.666666667 | I5: 0.462962963 | J5: 800^2240
A6: 5 | B6: 1 | C6: 144 | D6: 120 | E6: 200 | F6: 1000 | G6: 2800 | H6: 8.333333333 | I6: 0.5787037037 | J6: 1000^2800
A7: 6 | B7: 1 | C7: 144 | D7: 120 | F7: 1200 | G7: 3360 | H7: 10 | I7: 0.6944444444 | J7: 1200^3360
A8: 7 | B8: 1 | C8: 144 | D8: 120 | F8: 1400 | G8: 3920 | H8: 11.66666667 | I8: 0.8101851852 | J8: 1400^3920
A9: 8 | B9: 1 | C9: 144 | D9: 130 | F9: 1600 | G9: 4480 | H9: 12.30769231 | I9: 0.8547008547 | J9: 1600^4480
A10: 9 | B10: 1 | C10: 144 | D10: 130 | F10: 1800 | G10: 5040 | H10: 13.84615385 | I10: 0.9615384615 | J10: 1800^5040
A11: 10 | B11: 1 | C11: 144 | D11: 130 | F11: 2000 | G11: 5600 | H11: 15.38461538 | I11: 1.068376068 | J11: 2000^5600
A12: 11 | B12: 2 | C12: 160 | D12: 150 | F12: 2500 | G12: 7000 | H12: 16.66666667 | I12: 1.041666667 | J12: 2500^7000
A13: 12 | B13: 2 | C13: 160 | D13: 150 | F13: 2750 | G13: 7700 | H13: 18.33333333 | I13: 1.145833333 | J13: 2750^7700
A14: 13 | B14: 2 | C14: 160 | D14: 150 | F14: 3000 | G14: 8400 | H14: 20 | I14: 1.25 | J14: 3000^8400
A15: 14 | B15: 2 | C15: 160 | D15: 150 | F15: 3250 | G15: 9100 | H15: 21.66666667 | I15: 1.354166667 | J15: 3250^9100
A16: 15 | B16: 2 | C16: 160 | D16: 150 | F16: 3500 | G16: 9800 | H16: 23.33333333 | I16: 1.458333333 | J16: 3500^9800
A17: 16 | B17: 2 | C17: 160 | D17: 170 | F17: 3750 | G17: 10500 | H17: 22.05882353 | I17: 1.378676471 | J17: 3750^10500
A18: 17 | B18: 2 | C18: 160 | D18: 170 | F18: 4000 | G18: 11200 | H18: 23.52941176 | I18: 1.470588235 | J18: 4000^11200
A19: 18 | B19: 2 | C19: 160 | D19: 170 | F19: 4250 | G19: 11900 | H19: 25 | I19: 1.5625 | J19: 4250^11900
A20: 19 | B20: 2 | C20: 160 | D20: 170 | F20: 4500 | G20: 12600 | H20: 26.47058824 | I20: 1.654411765 | J20: 4500^12600
A21: 20 | B21: 2 | C21: 160 | D21: 170 | F21: 4750 | G21: 13300 | H21: 27.94117647 | I21: 1.746323529 | J21: 4750^13300
A22: 21 | B22: 3 | C22: 180 | D22: 220 | F22: 5500 | G22: 15400 | H22: 25 | I22: 1.388888889 | J22: 5500^15400
A23: 22 | B23: 3 | C23: 180 | D23: 220 | F23: 5800 | G23: 16240 | H23: 26.36363636 | I23: 1.464646465 | J23: 5800^16240
A24: 23 | B24: 3 | C24: 180 | D24: 220 | F24: 6100 | G24: 17080 | H24: 27.72727273 | I24: 1.54040404 | J24: 6100^17080
A25: 24 | B25: 3 | C25: 180 | D25: 220 | F25: 6400 | G25: 17920 | H25: 29.09090909 | I25: 1.616161616 | J25: 6400^17920
A26: 25 | B26: 3 | C26: 180 | D26: 240 | F26: 6700 | G26: 18760 | H26: 27.91666667 | I26: 1.550925926 | J26: 6700^18760
A27: 26 | B27: 3 | C27: 180 | D27: 240 | F27: 7000 | G27: 19600 | H27: 29.16666667 | I27: 1.62037037 | J27: 7000^19600
A28: 27 | B28: 3 | C28: 180 | D28: 240 | F28: 7300 | G28: 20440 | H28: 30.41666667 | I28: 1.689814815 | J28: 7300^20440
A29: 28 | B29: 3 | C29: 180 | D29: 240 | F29: 7600 | G29: 21280 | H29: 31.66666667 | I29: 1.759259259 | J29: 7600^21280
A30: 29 | B30: 3 | C30: 180 | D30: 240 | F30: 7900 | G30: 22120 | H30: 32.91666667 | I30: 1.828703704 | J30: 7900^22120
A31: 30 | B31: 3 | C31: 180 | D31: 240 | F31: 9000 | G31: 25200 | H31: 37.5 | I31: 2.083333333 | J31: 9000^25200
A32: 31 | B32: 4 | C32: 205 | D32: 280 | F32: 9400 | G32: 26320 | H32: 33.57142857 | I32: 1.637630662 | J32: 9400^26320
A33: 32 | B33: 4 | C33: 205 | D33: 280 | F33: 9800 | G33: 27440 | H33: 35 | I33: 1.707317073 | J33: 9800^27440
A34: 33 | B34: 4 | C34: 205 | D34: 280 | F34: 10200 | G34: 28560 | H34: 36.42857143 | I34: 1.777003484 | J34: 10200^28560
A35: 34 | B35: 4 | C35: 205 | D35: 280 | F35: 10600 | G35: 29680 | H35: 37.85714286 | I35: 1.846689895 | J35: 10600^29680
A36: 35 | B36: 4 | C36: 205 | D36: 280 | F36: 11000 | G36: 30800 | H36: 39.28571429 | I36: 1.916376307 | J36: 11000^30800
A37: 36 | B37: 4 | C37: 205 | D37: 330 | F37: 11400 | G37: 31920 | H37: 34.54545455 | I37: 1.685144124 | J37: 11400^31920
A38: 37 | B38: 4 | C38: 205 | D38: 330 | F38: 11800 | G38: 33040 | H38: 35.75757576 | I38: 1.744271988 | J38: 11800^33040
A39: 38 | B39: 4 | C39: 205 | D39: 330 | F39: 12200 | G39: 34160 | H39: 36.96969697 | I39: 1.803399852 | J39: 12200^34160
A40: 39 | B40: 4 | C40: 205 | D40: 330 | F40: 12600 | G40: 35280 | H40: 38.18181818 | I40: 1.862527716 | J40: 12600^35280
A41: 40 | B41: 4 | C41: 205 | D41: 330 | F41: 13000 | G41: 36400 | H41: 39.39393939 | I41: 1.92165558 | J41: 13000^36400
A42: 41 | B42: 4 | C42: 205 | D42: 330 | F42: 13400 | G42: 37520 | H42: 40.60606061 | I42: 1.980783444 | J42: 13400^37520
A43: 42 | B43: 4 | C43: 205 | D43: 330 | F43: 13800 | G43: 38640 | H43: 41.81818182 | I43: 2.039911308 | J43: 13800^38640
A44: 43 | B44: 4 | C44: 205 | D44: 330 | F44: 14200 | G44: 39760 | H44: 43.03030303 | I44: 2.099039172 | J44: 14200^39760
A45: 44 | B45: 4 | C45: 205 | D45: 330 | F45: 14600 | G45: 40880 | H45: 44.24242424 | I45: 2.158167036 | J45: 14600^40880
A46: 45 | B46: 4 | C46: 205 | D46: 330 | F46: 15000 | G46: 42000 | H46: 45.45454545 | I46: 2.2172949 | J46: 15000^42000
A47: 46 | B47: 5 | C47: 288 | D47: 400 | F47: 22000 | G47: 61600 | H47: 55 | I47: 1.909722222 | J47: 22000^61600
A48: 47 | B48: 5 | C48: 288 | D48: 400 | F48: 24000 | G48: 67200 | H48: 60 | I48: 2.083333333 | J48: 24000^67200
A49: 48 | B49: 5 | C49: 288 | D49: 400 | F49: 26000 | G49: 72800 | H49: 65 | I49: 2.256944444 | J49: 26000^72800
A50: 49 | B50: 5 | C50: 288 | D50: 400 | F50: 28000 | G50: 78400 | H50: 70 | I50: 2.430555556 | J50: 28000^78400
A51: 50 | B51: 5 | C51: 288 | D51: 400 | F51: 30000 | G51: 84000 | H51: 75 | I51: 2.604166667 | J51: 30000^84000
A52: 51 | B52: 5 | C52: 288 | D52: 400 | F52: 32000 | G52: 89600 | H52: 80 | I52: 2.777777778 | J52: 32000^89600
A53: 52 | B53: 5 | C53: 288 | D53: 400 | F53: 34000 | G53: 95200 | H53: 85 | I53: 2.951388889 | J53: 34000^95200
A54: 53 | B54: 5 | C54: 288 | D54: 400 | F54: 36000 | G54: 100800 | H54: 90 | I54: 3.125 | J54: 36000^100800
A55: 54 | B55: 5 | C55: 288 | D55: 400 | F55: 38000 | G55: 106400 | H55: 95 | I55: 3.298611111 | J55: 38000^106400
A56: 55 | B56: 5 | C56: 288 | D56: 400 | F56: 40000 | G56: 112000 | H56: 100 | I56: 3.472222222 | J56: 40000^112000
A57: 56 | B57: 5 | C57: 288 | D57: 400 | F57: 42000 | G57: 117600 | H57: 105 | I57: 3.645833333 | J57: 42000^117600
A58: 57 | B58: 5 | C58: 288 | D58: 400 | F58: 44000 | G58: 123200 | H58: 110 | I58: 3.819444444 | J58: 44000^123200
A59: 58 | B59: 5 | C59: 288 | D59: 400 | F59: 46000 | G59: 128800 | H59: 115 | I59: 3.993055556 | J59: 46000^128800
A60: 59 | B60: 5 | C60: 288 | D60: 400 | F60: 48000 | G60: 134400 | H60: 120 | I60: 4.166666667 | J60: 48000^134400
A61: 60 | B61: 5 | C61: 288 | D61: 400 | F61: 50000 | G61: 140000 | H61: 125 | I61: 4.340277778 | J61: 50000^140000
A62: 61 | B62: 6 | C62: 320 | D62: 500 | F62: 55000 | G62: 154000 | H62: 110 | I62: 3.4375 | J62: 55000^154000
A63: 62 | B63: 6 | C63: 320 | D63: 500 | F63: 57000 | G63: 159600 | H63: 114 | I63: 3.5625 | J63: 57000^159600
A64: 63 | B64: 6 | C64: 320 | D64: 500 | F64: 59000 | G64: 165200 | H64: 118 | I64: 3.6875 | J64: 59000^165200
A65: 64 | B65: 6 | C65: 320 | D65: 500 | F65: 61000 | G65: 170800 | H65: 122 | I65: 3.8125 | J65: 61000^170800
A66: 65 | B66: 6 | C66: 320 | D66: 500 | F66: 63000 | G66: 176400 | H66: 126 | I66: 3.9375 | J66: 63000^176400
A67: 66 | B67: 6 | C67: 320 | D67: 500 | F67: 65000 | G67: =F67*2.8 -> 182000 | H67: =F67/D67 -> 130 | I67: =H67/C67*10 -> 4.0625 | J67: =_xlfn.TEXTJOIN("^",TRUE,F67:G67) -> 65000^182000
A68: 67 | B68: 6 | C68: 320 | D68: 500 | F68: 67000 | G68: 187600 | H68: 134 | I68: 4.1875 | J68: 67000^187600
A69: 68 | B69: 6 | C69: 320 | D69: 500 | F69: 69000 | G69: 193200 | H69: 138 | I69: 4.3125 | J69: 69000^193200
A70: 69 | B70: 6 | C70: 320 | D70: 500 | F70: 71000 | G70: 198800 | H70: 142 | I70: 4.4375 | J70: 71000^198800
A71: 70 | B71: 6 | C71: 320 | D71: 500 | F71: 73000 | G71: 204400 | H71: 146 | I71: 4.5625 | J71: 73000^204400
A72: 71 | B72: 6 | C72: 320 | D72: 500 | F72: 75000 | G72: 210000 | H72: 150 | I72: 4.6875 | J72: 75000^210000
A73: 72 | B73: 6 | C73: 320 | D73: 500 | F73: 77000 | G73: 215600 | H73: 154 | I73: 4.8125 | J73: 77000^215600
A74: 73 | B74: 6 | C74: 320 | D74: 500 | F74: 79000 | G74: 221200 | H74: 158 | I74: 4.9375 | J74: 79000^221200
A75: 74 | B75: 6 | C75: 320 | D75: 500 | F75: 81000 | G75: 226800 | H75: 162 | I75: 5.0625 | J75: 81000^226800
A76: 75 | B76: 6 | C76: 320 | D76: 500 | F76: 83000 | G76: 232400 | H76: 166 | I76: 5.1875 | J76: 83000^232400
A77: 76 | B77: 7 | C77: 360 | D77: 600 | F77: 100000 | G77: 280000 | H77: 166.6666667 | I77: 4.62962963 | J77: 100000^280000
A78: 77 | B78: 7 | C78: 360 | D78: 600 | F78: 103000 | G78: 288400 | H78: 171.6666667 | I78: 4.768518519 | J78: 103000^288400
A79: 78 | B79: 7 | C79: 360 | D79: 600 | F79: 106000 | G79: 296800 | H79: 176.6666667 | I79: 4.907407407 | J79: 106000^296800
A80: 79 | B80: 7 | C80: 360 | D80: 600 | F80: 109000 | G80: 305200 | H80: 181.6666667 | I80: 5.046296296 | J80: 109000^305200
A81: 80 | B81: 7 | C81: 360 | D81: 600 | F81: 112000 | G81: 313600 | H81: 186.6666667 | I81: 5.185185185 | J81: 112000^313600
A82: 81 | B82: 7 | C82: 360 | D82: 600 | F82: 115000 | G82: 322000 | H82: 191.6666667 | I82: 5.324074074 | J82: 115000^322000
A83: 82 | B83: 7 | C83: 360 | D83: 600 | F83: 118000 | G83: 330400 | H83: 196.6666667 | I83: 5.462962963 | J83: 118000^330400
A84: 83 | B84: 7 | C84: 360 | D84: 600 | F84: 121000 | G84: 338800 | H84: 201.6666667 | I84: 5.601851852 | J84: 121000^338800
A85: 84 | B85: 7 | C85: 360 | D85: 600 | F85: 124000 | G85: 347200 | H85: 206.6666667 | I85: 5.740740741 | J85: 124000^347200
A86: 85 | B86: 7 | C86: 360 | D86: 600 | F86: 127000 | G86: 355600 | H86: 211.6666667 | I86: 5.87962963 | J86: 127000^355600
A87: 86 | B87: 7 | C87: 360 | D87: 600 | F87: 130000 | G87: 364000 | H87: 216.6666667 | I87: 6.018518519 | J87: 130000^364000
A88: 87 | B88: 7 | C88: 360 | D88: 600 | F88: 133000 | G88: 372400 | H88: 221.6666667 | I88: 6.157407407 | J88: 133000^372400
A89: 88 | B89: 7 | C89: 360 | D89: 600 | F89: 136000 | G89: 380800 | H89: 226.6666667 | I89: 6.296296296 | J89: 136000^380800
A90: 89 | B90: 7 | C90: 360 | D90: 600 | F90: 139000 | G90: 389200 | H90: 231.6666667 | I90: 6.435185185 | J90: 139000^389200
A91: 90 | B91: 7 | C91: 360 | D91: 600 | F91: 142000 | G91: 397600 | H91: 236.6666667 | I91: 6.574074074 | J91: 142000^397600
A92: 91 | B92: 8 | C92: 410 | D92: 700 | F92: 200000 | G92: 560000 | H92: 285.7142857 | I92: 6.968641115 | J92: 200000^560000
A93: 92 | B93: 8 | C93: 410 | D93: 700 | F93: 203000 | G93: 568400 | H93: 290 | I93: 7.073170732 | J93: 203000^568400
A94: 93 | B94: 8 | C94: 410 | D94: 700 | F94: 206000 | G94: 576800 | H94: 294.2857143 | I94: 7.177700348 | J94: 206000^576800
A95: 94 | B95: 8 | C95: 410 | D95: 700 | F95: 209000 | G95: 585200 | H95: 298.5714286 | I95: 7.282229965 | J95: 209000^585200
A96: 95 | B96: 8 | C96: 410 | D96: 700 | F96: 212000 | G96: 593600 | H96: 302.8571429 | I96: 7.386759582 | J96: 212000^593600
A97: 96 | B97: 8 | C97: 410 | D97: 700 | F97: 215000 | G97: 602000 | H97: 307.1428571 | I97: 7.491289199 | J97: 215000^602000
A98: 97 | B98: 8 | C98: 410 | D98: 700 | F98: 218000 | G98: 610400 | H98: 311.4285714 | I98: 7.595818815 | J98: 218000^610400
A99: 98 | B99: 8 | C99: 410 | D99: 700 | F99: 221000 | G99: 618800 | H99: 315.7142857 | I99: 7.700348432 | J99: 221000^618800
A100: 99 | B100: 8 | C100: 410 | D100: 700 | F100: 224000 | G100: 627200 | H100: 320 | I100: 7.804878049 | J100: 224000^627200
A101: 100 | B101: 8 | C101: 410 | D101: 700 | F101: 227000 | G101: 635600 | H101: 324.2857143 | I101: 7.909407666 | J101: 227000^635600
A102: 101 | B102: 8 | C102: 410 | D102: 700 | F102: 230000 | G102: 644000 | H102: 328.5714286 | I102: 8.013937282 | J102: 230000^644000
A103: 102 | B103: 8 | C103: 410 | D103: 700 | F103: 233000 | G103: 652400 | H103: 332.8571429 | I103: 8.118466899 | J103: 233000^652400
A104: 103 | B104: 8 | C104: 410 | D104: 700 | F104: 236000 | G104: 660800 | H104: 337.1428571 | I104: 8.222996516 | J104: 236000^660800
A105: 104 | B105: 8 | C105: 410 | D105: 700 | F105: 239000 | G105: 669200 | H105: 341.4285714 | I105: 8.327526132 | J105: 239000^669200
A106: 105 | B106: 8 | C106: 410 | D106: 700 | F106: 242000 | G106: 677600 | H106: 345.7142857 | I106: 8.432055749 | J106: 242000^677600
A107: 106 | B107: 9 | C107: 432 | D107: 800 | F107: 245000 | G107: 686000 | H107: 306.25 | I107: 7.08912037 | J107: 245000^686000
A108: 107 | B108: 9 | C108: 432 | D108: 800 | F108: 248000 | G108: 694400 | H108: 310 | I108: 7.175925926 | J108: 248000^694400
A109: 108 | B109: 9 | C109: 432 | D109: 800 | F109: 251000 | G109: 702800 | H109: 313.75 | I109: 7.262731481 | J109: 251000^702800
A110: 109 | B110: 9 | C110: 432 | D110: 800 | F110: 254000 | G110: 711200 | H110: 317.5 | I110: 7.349537037 | J110: 254000^711200
A111: 110 | B111: 9 | C111: 432 | D111: 800 | F111: 257000 | G111: 719600 | H111: 321.25 | I111: 7.436342593 | J111: 257000^719600
A112: 111 | B112: 9 | C112: 432 | D112: 800 | F112: 260000 | G112: 728000 | H112: 325 | I112: 7.523148148 | J112: 260000^728000
A113: 112 | B113: 9 | C113: 432 | D113: 800 | F113: 263000 | G113: 736400 | H113: 328.75 | I113: 7.609953704 | J113: 263000^736400
A114: 113 | B114: 9 | C114: 432 | D114: 800 | F114: 266000 | G114: 744800 | H114: 332.5 | I114: 7.696759259 | J114: 266000^744800
A115: 114 | B115: 9 | C115: 432 | D115: 800 | F115: 269000 | G115: 753200 | H115: 336.25 | I115: 7.783564815 | J115: 269000^753200
A116: 115 | B116: 9 | C116: 432 | D116: 800 | F116: 272000 | G116: 761600 | H116: 340 | I116: 7.87037037 | J116: 272000^761600
A117: 116 | B117: 9 | C117: 432 | D117: 800 | F117: 275000 | G117: 770000 | H117: 343.75 | I117: 7.957175926 | J117: 275000^770000
A118: 117 | B118: 9 | C118: 432 | D118: 800 | F118: 278000 | G118: 778400 | H118: 347.5 | I118: 8.043981481 | J118: 278000^778400
A119: 118 | B119: 9 | C119: 432 | D119: 800 | F119: 281000 | G119: 786800 | H119: 351.25 | I119: 8.130787037 | J119: 281000^786800
A120: 119 | B120: 9 | C120: 432 | D120: 800 | F120: 284000 | G120: 795200 | H120: 355 | I120: 8.217592593 | J120: 284000^795200
A121: 120 | B121: 9 | C121: 432 | D121: 800 | F121: 287000 | G121: 803600 | H121: 358.75 | I121: 8.304398148 | J121: 287000^803600
A122: 121 | B122: 10 | C122: 480 | D122: 900 | F122: 302000 | G122: 845600 | H122: 335.5555556 | I122: 6.990740741 | J122: 302000^845600
A123: 122 | B123: 10 | C123: 480 | D123: 900 | F123: 307000 | G123: 859600 | H123: 341.1111111 | I123: 7.106481481 | J123: 307000^859600
A124: 123 | B124: 10 | C124: 480 | D124: 900 | F124: 315000 | G124: 882000 | H124: 350 | I124: 7.291666667 | J124: 315000^882000
A125: 124 | B125: 10 | C125: 480 | D125: 900 | F125: 321000 | G125: 898800 | H125: 356.6666667 | I125: 7.430555556 | J125: 321000^898800
A126: 125 | B126: 10 | C126: 480 | D126: 900 | F126: 327500 | G126: 917000 | H126: 363.8888889 | I126: 7.581018519 | J126: 327500^917000
A127: 126 | B127: 10 | C127: 480 | D127: 900 | F127: 334000 | G127: 935200 | H127: 371.1111111 | I127: 7.731481481 | J127: 334000^935200
A128: 127 | B128: 10 | C128: 480 | D128: 900 | F128: 340500 | G128: 953400 | H128: 378.3333333 | I128: 7.881944444 | J128: 340500^953400
A129: 128 | B129: 10 | C129: 480 | D129: 900 | F129: 347000 | G129: 971600 | H129: 385.5555556 | I129: 8.032407407 | J129: 347000^971600
A130: 129 | B130: 10 | C130: 480 | D130: 900 | F130: 353500 | G130: 989800 | H130: 392.7777778 | I130: 8.18287037 | J130: 353500^989800
A131: 130 | B131: 10 | C131: 480 | D131: 900 | F131: 360000 | G131: =F131*2.8 -> 1008000 | H131: =F131/D131 -> 400 | I131: =H131/C131*10 -> 8.333333333 | J131: =_xlfn.TEXTJOIN("^",TRUE,F131:G131) -> 360000^1008000
A132: 131 | B132: 10 | C132: 480 | D132: 900 | F132: 366500 | G132: 1026200 | H132: 407.2222222 | I132: 8.483796296 | J132: 366500^1026200
A133: 132 | B133: 10 | C133: 480 | D133: 900 | F133: 373000 | G133: 1044400 | H133: 414.4444444 | I133: 8.634259259 | J133: 373000^1044400
A134: 133 | B134: 10 | C134: 480 | D134: 900 | F134: 379500 | G134: 1062600 | H134: 421.6666667 | I134: 8.784722222 | J134: 379500^1062600
A135: 134 | B135: 10 | C135: 480 | D135: 900 | F135: 386000 | G135: 1080800 | H135: 428.8888889 | I135: 8.935185185 | J135: 386000^1080800
A136: 135 | B136: 10 | C136: 480 | D136: 900 | F136: 392500 | G136: 1099000 | H136: 436.1111111 | I136: 9.085648148 | J136: 392500^1099000
A137: 136 | B137: 10 | C137: 480 | D137: 900 | F137: 399000 | G137: 1117200 | H137: 443.3333333 | I137: 9.236111111 | J137: 399000^1117200
A138: 137 | B138: 10 | C138: 480 | D138: 900 | F138: 405500 | G138: 1135400 | H138: 450.5555556 | I138: 9.386574074 | J138: 405500^1135400
A139: 138 | B139: 10 | C139: 480 | D139: 900 | F139: 412000 | G139: 1153600 | H139: 457.7777778 | I139: 9.537037037 | J139: 412000^1153600
A140: 139 | B140: 10 | C140: 480 | D140: 900 | F140: 418500 | G140: 1171800 | H140: 465 | I140: 9.6875 | J140: 418500^1171800
A141: 140 | B141: 10 | C141: 480 | D141: 900 | F141: 425000 | G141: 1190000 | H141: 472.2222222 | I141: 9.837962963 | J141: 425000^1190000
A142: 141 | B142: 10 | C142: 480 | D142: 900 | F142: 431500 | G142: 1208200 | H142: 479.4444444 | I142: 9.988425926 | J142: 431500^1208200
A143: 142 | B143: 10 | C143: 480 | D143: 900 | F143: 438000 | G143: 1226400 | H143: 486.6666667 | I143: 10.13888889 | J143: 438000^1226400
A144: 143 | B144: 10 | C144: 480 | D144: 900 | F144: 444500 | G144: 1244600 | H144: 493.8888889 | I144: 10.28935185 | J144: 444500^1244600
A145: 144 | B145: 10 | C145: 480 | D145: 900 | F145: 451000 | G145: 1262800 | H145: 501.1111111 | I145: 10.43981481 | J145: 451000^1262800
A146: 145 | B146: 10 | C146: 480 | D146: 900 | F146: 457500 | G146: 1281000 | H146: 508.3333333 | I146: 10.59027778 | J146: 457500^1281000
A147: 146 | B147: 10 | C147: 480 | D147: 900 | F147: 464000 | G147: 1299200 | H147: 515.5555556 | I147: 10.74074074 | J147: 464000^1299200
A148: 147 | B148: 10 | C148: 480 | D148: 900 | F148: 470500 | G148: 1317400 | H148: 522.7777778 | I148: 10.8912037 | J148: 470500^1317400
A149: 148 | B149: 10 | C149: 480 | D149: 900 | F149: 477000 | G149: 1335600 | H149: 530 | I149: 11.04166667 | J149: 477000^1335600
A150: 149 | B150: 10 | C150: 480 | D150: 900 | F150: 483500 | G150: 1353800 | H150: 537.2222222 | I150: 11.19212963 | J150: 483500^1353800
A151: 150 | B151: 10 | C151: 480 | D151: 900 | F151: 490000 | G151: 1372000 | H151: 544.4444444 | I151: 11.34259259 | J151: 490000^1372000
A152: 151 | B152: 10 | C152: 480 | D152: 900 | F152: 496500 | G152: =F152*2.8 -> 1390200 | J152: 496500^1390200
A153: 152 | B153: 10 | C153: 480 | D153: 900 | F153: 503000 | G153: 1408400 | J153: 503000^1408400
A154: 153 | B154: 10 | C154: 480 | D154: 900 | F154: 509500 | G154: 1426600 | J154: 509500^1426600
A155: 154 | B155: 10 | C155: 480 | D155: 900 | F155: 516000 | G155: 1444800 | J155: 516000^1444800
A156: 155 | B156: 10 | C156: 480 | D156: 900 | F156: 522500 | G156: 1463000 | J156: 522500^1463000
A157: 156 | B157: 10 | C157: 480 | D157: 900 | F157: 529000 | G157: 1481200 | J157: 529000^1481200
A158: 157 | B158: 10 | C158: 480 | D158: 900 | F158: 535500 | G158: 1499400 | J158: 535500^1499400
A159: 158 | B159: 10 | C159: 480 | D159: 900 | F159: 542000 | G159: 1517600 | J159: 542000^1517600
A160: 159 | B160: 10 | C160: 480 | D160: 900 | F160: 548500 | G160: 1535800 | J160: 548500^1535800
A161: 160 | B161: 10 | C161: 480 | D161: 900 | F161: 555000 | G161: 1554000 | J161: 555000^1554000
A162: 161 | B162: 10 | C162: 480 | D162: 900 | F162: 561500 | G162: 1572200 | J162: 561500^1572200
A163: 162 | B163: 10 | C163: 480 | D163: 900 | F163: 568000 | G163: 1590400 | J163: 568000^1590400
A164: 163 | B164: 10 | C164: 480 | D164: 900 | F164: 574500 | G164: 1608600 | J164: 574500^1608600
A165: 164 | B165: 10 | C165: 480 | D165: 900 | F165: 581000 | G165: 1626800 | J165: 581000^1626800
A166: 165 | B166: 10 | C166: 480 | D166: 900 | F166: 587500 | G166: 1645000 | J166: 587500^1645000
A167: 166 | B167: 10 | C167: 480 | D167: 900 | F167: 594000 | G167: 1663200 | J167: 594000^1663200
A168: 167 | B168: 10 | C168: 480 | D168: 900 | F168: 600500 | G168: 1681400 | J168: 600500^1681400
A169: 168 | B169: 10 | C169: 480 | D169: 900 | F169: 607000 | G169: 1699600 | J169: 607000^1699600
A170: 169 | B170: 10 | C170: 480 | D170: 900 | F170: 613500 | G170: =F170*2.8 -> 1717800 | J170: 613500^1717800
A171: 170 | B171: 10 | C171: 480 | D171: 900 | F171: 620000 | G171: 1736000 | J171: 620000^1736000

Sheet Sheet3
